bitfinex-derivatives/quotes_BTCF0:USTF0_20250422
["timestamp","ask_amount","ask_price","bid_price","bid_amount"]
[1745328096659,0.3813,89638.0,89637.0,0.1115588]
[1745328096858,0.1839,89660.0,89637.0,0.1115588]
[1745328096859,0.1839,89660.0,89637.0,0.3608]
[1745328097059,0.1115347,89657.0,89645.0,0.3608]
[1745328097264,0.1115349,89657.0,89647.0,0.1115453]
[1745328097561,0.00031321,89661.0,89654.0,0.3608]
[1745328097864,0.0001674,89661.0,89655.0,0.1816]
[1745328098069,0.0002474,89661.0,89651.0,0.0878]
[1745328098273,0.0001674,89661.0,89652.0,0.11154]
[1745328098565,0.008,89657.0,89656.0,0.1045352]
[1745328098865,0.008,89657.0,89656.0,0.6469352]
[1745328099063,0.008,89657.0,89656.0,0.8365352]
[1745328099468,0.008,89657.0,89656.0,0.82816229]
[1745328099665,0.008,89657.0,89656.0,0.82916229]
[1745328099666,0.00808,89657.0,89656.0,0.82916229]
[1745328100268,0.00808,89657.0,89656.0,0.83016229]
[1745328101061,8e-05,89657.0,89656.0,0.83016229]
[1745328101561,0.00014581,89679.0,89678.0,0.1115078]
[1745328101768,0.193,89688.0,89681.0,0.1115041]
[1745328101968,0.193,89688.0,89687.0,0.1114966]
[1745328102266,0.193,89688.0,89680.0,0.3814]
[1745328102267,0.20129685,89688.0,89686.0,0.3608]
[1745328102471,0.20129685,89688.0,89675.0,0.08776]
[1745328102472,0.2946,89687.0,89675.0,0.08776]
[1745328102662,0.0557522,89681.0,89678.0,0.0001673]
[1745328102869,0.0597533,89679.0,89678.0,0.0001673]
[1745328103268,0.17126131,89679.0,89678.0,0.0001673]
[1745328103466,0.50370801,89679.0,89678.0,0.0001673]
[1745328103668,0.0557579,89672.0,89663.0,0.08776]
[1745328103869,0.3767,89671.0,89660.0,0.1115291]
[1745328104270,0.3508,89664.0,89660.0,0.1115291]
[1745328104473,0.3767,89663.0,89660.0,0.1115291]
[1745328105171,0.3767,89663.0,89661.0,0.1115288]
[1745328105369,0.3767,89663.0,89661.0,0.1045288]
[1745328105765,0.3767,89663.0,89657.0,0.4114]
[1745328105967,0.3767,89663.0,89657.0,0.5229336]
[1745328106270,0.3767,89663.0,89658.0,0.1115321]
[1745328106668,0.3767,89663.0,89659.0,0.1115311]
[1745328106868,0.3767,89663.0,89662.0,0.1115277]
[1745328107570,0.08802573,89704.0,89687.0,0.1114966]
[1745328107776,0.08802573,89704.0,89694.0,0.1114879]
[1745328107777,0.00026573,89704.0,89694.0,0.1114879]
[1745328107964,0.1924,89700.0,89699.0,0.1114817]
[1745328108161,0.1924,89700.0,89699.0,0.3608]
[1745328108566,0.1924,89700.0,89694.0,0.1879]
[1745328108766,0.1924,89700.0,89691.0,0.0001673]
[1745328108767,0.0557414,89698.0,89691.0,0.0001673]
[1745328108965,0.20077039,89700.0,89691.0,0.0001673]
[1745328108966,0.3763,89697.0,89691.0,0.0001673]
[1745328109177,0.3763,89697.0,89692.0,0.1114898]
[1745328109568,0.3763,89697.0,89692.0,0.10311891]
[1745328109868,0.3763,89697.0,89691.0,0.0559128]
[1745328110271,0.3763,89697.0,89693.0,0.1114888]
[1745328111867,0.3783,89697.0,89693.0,0.1114888]
[1745328112061,0.3783,89697.0,89691.0,0.0001673]
[1745328112566,0.3783,89697.0,89691.0,0.3844673]
[1745328112768,0.1944,89697.0,89696.0,0.3608]
[1745328113071,0.19448,89697.0,89691.0,0.0001673]
[1745328113261,0.19448,89697.0,89676.0,0.7722]
[1745328113262,0.111509,89677.0,89676.0,0.4114]
[1745328113460,0.3608,89687.0,89676.0,0.4114]
[1745328113772,0.1908,89686.0,89683.0,0.3608]
[1745328113973,0.1993,89685.0,89683.0,0.1922]
[1745328114474,0.1908,89684.0,89683.0,0.1922]
[1745328114682,0.1908,89684.0,89683.0,0.3037016]
[1745328114866,0.1908,89684.0,89683.0,0.1922]
[1745328115569,0.1908,89684.0,89683.0,0.3037016]
[1745328115763,8e-05,89686.0,89685.0,0.1114991]
[1745328115969,0.1931,89691.0,89690.0,0.1114929]
[1745328116172,0.1931,89691.0,89687.0,0.0557481]
[1745328116173,0.1931,89691.0,89685.0,0.4165491]
[1745328116374,0.1931,89691.0,89690.0,0.1114929]
[1745328117165,0.1931,89691.0,89688.0,0.0557475]
[1745328117369,0.1931,89691.0,89689.0,0.1938]
[1745328117675,0.1828,89690.0,89689.0,0.1938]
[1745328117874,0.1828,89690.0,89689.0,0.3052941]
[1745328119677,8e-05,89713.0,89712.0,0.45831509]
[1745328120071,0.18748,89713.0,89712.0,0.45831509]
[1745328120267,0.00852797,89713.0,89712.0,0.45831509]
[1745328120872,0.00844797,89713.0,89712.0,0.45231509]
[1745328121073,0.1874,89720.0,89713.0,0.1114642]
[1745328121278,0.0558123,89713.0,89702.0,0.1114776]
[1745328121473,0.3636,89712.0,89700.0,0.25962006]
[1745328121674,0.183,89712.0,89711.0,0.1114668]
[1745328122178,0.36368,89712.0,89711.0,0.1114668]
[1745328123174,8e-05,89712.0,89711.0,0.1114668]
[1745328123376,0.00817299,89713.0,89712.0,0.1114655]
[1745328123679,0.3655,89720.0,89712.0,0.3608]
[1745328123880,0.4769565,89720.0,89710.0,0.1908]
[1745328124070,0.4769565,89720.0,89710.0,0.302267]
[1745328124071,0.3655,89720.0,89710.0,0.302267]
[1745328124277,0.3655,89720.0,89711.0,0.1114666]
[1745328124778,0.1114636,89714.0,89708.0,0.7722]
[1745328124972,0.1114683,89710.0,89708.0,0.4114]
[1745328125180,0.3851,89709.0,89708.0,0.4114]
[1745328125578,0.002,89712.0,89711.0,0.1114668]
[1745328125980,0.1871,89719.0,89714.0,0.1114626]
[1745328126283,0.198,89718.0,89717.0,0.1114593]
[1745328126484,0.198,89718.0,89717.0,0.4722593]
[1745328126683,0.198,89718.0,89717.0,0.4692593]
[1745328127589,0.198,89718.0,89717.0,0.3608]
[1745328128105,0.198,89718.0,89717.0,0.4722593]
[1745328128597,0.001,89718.0,89717.0,0.4652593]
[1745328129199,0.1869,89734.0,89732.0,0.1114399]
[1745328129398,0.00010801,89730.0,89724.0,0.0557248]
[1745328129598,0.4722449,89729.0,89718.0,0.4114]
[1745328129904,0.3749,89728.0,89719.0,0.1114568]
[1745328130205,0.38311265,89728.0,89718.0,0.5919]
[1745328130503,0.38311265,89728.0,89718.0,0.6476287]
[1745328130702,0.38311265,89728.0,89720.0,0.1114545]
[1745328131494,0.38311265,89728.0,89718.0,0.5919]
[1745328131699,0.1114471,89727.0,89718.0,0.5919]
[1745328131898,0.1114471,89727.0,89718.0,0.4114]
[1745328132204,0.3781,89726.0,89718.0,0.4114]
[1745328132594,0.3781,89726.0,89718.0,0.522858]
[1745328132791,0.4895486,89726.0,89716.0,0.1114603]
[1745328132994,0.3781,89726.0,89715.0,0.0001672]
[1745328133194,0.489549,89726.0,89716.0,0.1114604]
[1745328133394,0.3781,89726.0,89717.0,0.111459]
[1745328133799,0.3781,89726.0,89716.0,0.1993]
[1745328133999,0.1114524,89723.0,89716.0,0.1993]
[1745328134299,0.3797,89722.0,89715.0,0.0001672]
[1745328134601,0.15286418,107230.0,89721.0,0.3608]
[1745328134602,0.02914007,89734.0,89721.0,0.3608]
[1745328134905,0.0557241,89726.0,89715.0,0.1116283]
[1745328135204,0.1827,89725.0,89719.0,0.1114563]
[1745328135393,8e-05,89722.0,89720.0,0.1993]
[1745328135702,8e-05,89722.0,89720.0,0.3107552]
[1745328135901,8e-05,89722.0,89721.0,0.1983]
[1745328136304,8e-05,89722.0,89721.0,0.1913]
[1745328136495,8e-05,89722.0,89721.0,0.3762]
[1745328136696,8e-05,89722.0,89721.0,0.4876543]
[1745328136896,8e-05,89722.0,89721.0,0.3762]
[1745328137197,8e-05,89722.0,89719.0,0.001]
[1745328138106,8e-05,89722.0,89719.0,0.1849]
[1745328138296,8e-05,89722.0,89721.0,0.1114543]
[1745328138603,0.00843107,89728.0,89727.0,0.1114469]
[1745328138804,0.00010801,89729.0,89728.0,0.1114457]
[1745328139000,0.0001672,89732.0,89731.0,0.1114419]
[1745328139203,0.00010801,89742.0,89741.0,0.09748449]
[1745328139400,0.00010801,89742.0,89741.0,0.45828449]
[1745328141094,0.00849669,89742.0,89730.0,0.7722]
[1745328141407,0.00849669,89742.0,89736.0,0.1114356]
[1745328141597,0.39,89741.0,89736.0,0.1114356]
[1745328141800,0.1963,89741.0,89740.0,0.1114308]
[1745328142199,0.00849669,89742.0,89741.0,0.1114295]
[1745328142406,0.00849669,89742.0,89739.0,0.1801]
[1745328142407,0.00838868,89742.0,89739.0,0.1801]
[1745328142604,8e-05,89742.0,89740.0,0.198]
[1745328142799,8e-05,89742.0,89741.0,0.1801]
[1745328143403,0.00830802,89742.0,89741.0,0.1801]
[1745328143795,0.00830802,89742.0,89730.0,0.7722]
[1745328144000,0.1114366,89736.0,89730.0,0.7653672]
[1745328144301,0.37,89735.0,89730.0,0.7653672]
[1745328144503,0.37,89735.0,89730.0,0.4045672]
[1745328144809,0.1114419,89731.0,89730.0,0.4045672]
[1745328145104,0.3608,89738.0,89730.0,0.4045672]
[1745328145311,0.00830802,89742.0,89737.0,0.3608]
[1745328145503,0.00830802,89742.0,89741.0,0.1114295]
[1745328146405,0.0001672,89750.0,89749.0,0.1114196]
[1745328146704,0.0001672,89750.0,89749.0,0.4722196]
[1745328147106,0.00851192,89750.0,89749.0,0.4722196]
[1745328147305,0.00843192,89750.0,89749.0,0.4722196]
[1745328147709,0.00851192,89750.0,89749.0,0.4722196]
[1745328148104,0.00851192,89750.0,89749.0,0.8457196]
[1745328149204,0.00851192,89750.0,89749.0,0.8467196]
[1745328149915,0.18094581,89761.0,89749.0,0.8467196]
[1745328149916,0.3608,89767.0,89761.0,0.1114035]
[1745328150099,0.00014581,89764.0,89762.0,0.3866]
[1745328150306,0.00014581,89764.0,89762.0,0.35983119]
[1745328150607,0.00014581,89764.0,89762.0,0.457293]
[1745328151106,0.00014581,89764.0,89762.0,0.3458899]
[1745328151304,0.00853856,89764.0,89762.0,0.1499899]
[1745328151514,0.00014581,89764.0,89763.0,0.1892]
[1745328151711,0.19624581,89764.0,89763.0,0.1892]
[1745328151906,0.1961,89764.0,89763.0,0.1832]
[1745328152104,0.19618,89764.0,89763.0,0.1832]
[1745328153508,0.19618,89764.0,89753.0,0.1114146]
[1745328153509,0.1114052,89761.0,89753.0,0.1114146]
[1745328153709,0.1114052,89761.0,89751.0,0.1825]
[1745328153710,0.1114073,89759.0,89752.0,0.1114153]
[1745328153912,0.1114073,89759.0,89752.0,0.2974153]
[1745328154110,0.3819,89758.0,89742.0,0.3608]
[1745328154303,0.3819,89758.0,89742.0,0.5468]
[1745328154506,0.3608,89746.0,89741.0,0.0852472]
[1745328154704,0.3698,89745.0,89741.0,0.1966868]
[1745328154913,0.3698,89745.0,89742.0,0.186]
[1745328155104,0.3698,89745.0,89742.0,0.3803]
[1745328156214,0.3698,89745.0,89742.0,0.3833]
[1745328156413,0.0001671,89752.0,89742.0,0.7441]
[1745328156606,0.0001671,89752.0,89751.0,0.4722283]
[1745328156808,0.0001671,89752.0,89751.0,0.8767955]
[1745328157107,0.0002471,89752.0,89751.0,0.8767955]
[1745328157308,0.0001671,89752.0,89751.0,0.8767955]
[1745328157609,0.00010801,89763.0,89762.0,0.1114146]
[1745328157914,0.11152151,89763.0,89752.0,0.0557134]
[1745328158210,0.1114163,89761.0,89753.0,0.383]
[1745328158409,0.3727,89760.0,89753.0,0.383]
[1745328158598,0.3727,89760.0,89753.0,0.4944252]
[1745328158806,0.3727,89760.0,89753.0,0.383]
[1745328159007,0.3727,89760.0,89754.0,0.1114241]
[1745328159211,0.36929479,89764.0,89754.0,0.1114241]
[1745328159212,0.3535165,89764.0,89754.0,0.1114241]
[1745328159509,0.1114137,89763.0,89754.0,0.1044241]
[1745328159711,0.1114137,89763.0,89753.0,0.4944249]
[1745328159912,0.1114145,89763.0,89753.0,0.383]
[1745328160101,0.1114145,89763.0,89753.0,0.4944255]
[1745328160302,0.36181732,89764.0,89751.0,0.4045672]
[1745328160604,0.472227,89752.0,89751.0,0.4045672]
[1745328161011,0.472227,89752.0,89751.0,0.39062238]
[1745328161410,0.111427,89752.0,89751.0,0.39062238]
[1745328161615,0.222847,89752.0,89751.0,0.39062238]
[1745328162116,0.1114357,89745.0,89744.0,0.3938]
[1745328162311,0.1952,89751.0,89741.0,0.0001672]
[1745328162610,0.3608,89748.0,89741.0,0.1673271]
[1745328162810,0.4722323,89748.0,89742.0,0.1994]
[1745328163016,0.0557172,89746.0,89742.0,0.1994]
[1745328163219,0.3742,89745.0,89744.0,0.002]
[1745328163510,0.4856357,89745.0,89744.0,0.0006372]
[1745328163810,0.0557199,89742.0,89711.0,0.3608]
[1745328164014,0.3608,89724.0,89719.0,0.1881]
[1745328164214,0.1114667,89720.0,89719.0,0.1881]
[1745328164408,0.483256,89723.0,89702.0,0.0557445]
[1745328164610,0.3608,89716.0,89708.0,0.1114816]
[1745328164805,0.1923,89715.0,89709.0,0.3729]
[1745328165010,0.3801,89715.0,89703.0,0.00016721]
[1745328165221,0.3608,89704.0,89703.0,0.00016721]
[1745328165715,0.4722866,89704.0,89703.0,0.00016721]
[1745328165911,0.50614817,89704.0,89703.0,0.00016721]
[1745328166312,0.17943187,89708.0,89703.0,0.00016721]
[1745328166514,0.1114866,89704.0,89703.0,0.00616721]
[1745328166921,0.2229666,89704.0,89703.0,0.00616721]
[1745328167308,0.00838866,89704.0,89699.0,0.35996721]
[1745328167614,0.1114717,89716.0,89702.0,0.1114891]
[1745328167815,0.1114733,89715.0,89710.0,0.3608]
[1745328168020,0.02505539,89716.0,89711.0,0.3826]
[1745328168220,0.0557334,89720.0,89711.0,0.3826]
[1745328168621,0.1114745,89714.0,89711.0,0.3826]
[1745328169122,0.1114745,89714.0,89711.0,0.3836]
[1745328169322,0.1114745,89714.0,89713.0,0.1114753]
[1745328169323,0.00844726,89714.0,89713.0,0.1114753]
[1745328169518,0.02597885,89716.0,89715.0,0.111473]
[1745328169821,0.08612,89726.0,89716.0,0.1114707]
[1745328170022,0.08612,89726.0,89720.0,0.3608]
[1745328170622,0.03362168,89721.0,89720.0,0.4722667]
[1745328170826,0.02534184,89721.0,89720.0,0.4722667]
[1745328171118,0.00014581,89736.0,89720.0,0.3608]
[1745328171321,0.00853014,89736.0,89735.0,0.3608]
[1745328171520,0.12773241,89738.0,89735.0,0.3588]
[1745328171819,0.10193115,89744.0,89743.0,0.1114382]
[1745328172020,0.00010801,89749.0,89746.0,0.0557167]
[1745328172218,0.00010801,89749.0,89748.0,0.472232]
[1745328172414,0.00016721,89752.0,89751.0,0.1114282]
[1745328172615,0.00010801,89759.0,89758.0,0.1114196]
[1745328172923,0.1941,89775.0,89757.0,0.3608]
[1745328173117,8e-05,89759.0,89757.0,0.3608]
[1745328173316,0.00836235,89759.0,89757.0,0.3608]
[1745328173924,0.03314882,89759.0,89755.0,0.3608]
[1745328174113,8e-05,89759.0,89755.0,0.3608]
[1745328174516,0.0259591,89759.0,89756.0,0.1114216]
[1745328174917,0.0258791,89759.0,89756.0,0.1114216]
[1745328175120,8e-05,89759.0,89755.0,0.3608]
[1745328175321,0.03362964,89759.0,89755.0,0.4722231]
[1745328175623,0.03362964,89759.0,89756.0,0.1834]
[1745328176015,0.03662964,89759.0,89756.0,0.1834]
[1745328176424,0.0115187,89759.0,89756.0,0.1834]
[1745328176733,0.0115187,89759.0,89756.0,0.350532]
[1745328176928,0.0114387,89759.0,89756.0,0.350532]
[1745328177229,0.0115187,89759.0,89756.0,0.2391108]
[1745328177423,0.0115187,89759.0,89756.0,0.1834]
[1745328177728,0.0115187,89759.0,89756.0,0.5442]
[1745328177920,0.0115187,89759.0,89758.0,0.4722196]
[1745328178123,0.00014581,89771.0,89764.0,0.0557055]
[1745328178431,0.3608,89783.0,89770.0,0.3608]
[1745328178618,0.3608,89783.0,89770.0,0.67536915]
[1745328178619,8e-05,89771.0,89770.0,0.67536915]
[1745328178816,8e-05,89771.0,89770.0,0.4165021]
[1745328179124,0.1113723,89797.0,89777.0,0.0556979]
[1745328179326,0.0556878,89794.0,89783.0,0.3608]
[1745328179522,0.11138,89790.0,89783.0,0.3608]
[1745328179720,0.13643517,89790.0,89783.0,0.3608]
[1745328179916,0.02505517,89790.0,89783.0,0.3608]
[1745328180118,0.11138,89790.0,89783.0,0.3608]
[1745328180316,0.00822873,89790.0,89783.0,0.3608]
[1745328180519,8e-05,89790.0,89785.0,0.1113857]
[1745328180824,8e-05,89790.0,89783.0,0.3608]
[1745328181027,0.1113896,89783.0,89768.0,0.1114067]
[1745328181228,0.0556929,89786.0,89765.0,0.055705]
[1745328181527,0.25886705,89781.0,89762.0,0.00016711]
[1745328181734,0.63216,89780.0,89770.0,0.3608]
[1745328181918,0.63216,89780.0,89762.0,0.00016711]
[1745328182421,0.3608,89763.0,89735.0,0.3608]
[1745328182725,0.3608,89751.0,89727.0,0.58992238]
[1745328182917,0.3608,89754.0,89727.0,0.58992238]
[1745328183122,0.3608,89754.0,89740.0,0.3608]
[1745328183918,0.3608,89754.0,89738.0,0.36096711]
[1745328184321,0.205024,89753.0,89738.0,0.00016711]
[1745328184523,0.3608,89742.0,89715.0,0.3608]
[1745328184725,0.3608,89754.0,89734.0,0.3608]
[1745328184918,8e-05,89742.0,89741.0,0.1114396]
[1745328185118,0.00010801,89757.0,89741.0,0.41893999]
[1745328185318,0.0936,89768.0,89756.0,0.34685536]
[1745328185519,0.0936,89768.0,89757.0,0.1961]
[1745328185716,0.3608,89764.0,89757.0,0.1961]
[1745328186130,0.111408,89763.0,89755.0,0.3608]
[1745328186325,0.472208,89763.0,89753.0,0.00016711]
[1745328186528,0.111412,89762.0,89753.0,0.00016711]
[1745328186736,0.111412,89762.0,89760.0,0.3608]
[1745328187026,8e-05,89762.0,89761.0,0.5435]
[1745328187221,8e-05,89762.0,89761.0,0.1827]
[1745328187421,0.111488,89762.0,89761.0,0.1787]
[1745328187617,0.111488,89762.0,89761.0,0.5395]
[1745328187827,0.111408,89762.0,89761.0,0.5395]
[1745328188127,0.115488,89762.0,89761.0,0.5395]
[1745328188724,0.113488,89762.0,89761.0,0.1787]
[1745328188924,0.113408,89762.0,89761.0,0.1787]
[1745328189129,0.00208,89762.0,89761.0,0.1787]
[1745328189325,0.00108,89762.0,89761.0,0.1787]
[1745328189732,0.112488,89762.0,89757.0,0.3608]
[1745328189920,0.111412,89761.0,89753.0,0.00016711]
[1745328190327,0.111412,89760.0,89753.0,0.00016711]
[1745328190526,0.111492,89761.0,89749.0,0.18676711]
[1745328190729,8e-05,89761.0,89749.0,0.18676711]
[1745328191725,0.0936,89760.0,89749.0,0.18676711]
[1745328193830,0.0936,89760.0,89750.0,0.1942]
[1745328194037,0.0936,89760.0,89759.0,0.3608]
[1745328194332,0.0936,89772.0,89759.0,0.3608]
[1745328194633,0.0936,89772.0,89768.0,0.3608]
[1745328195136,0.0936,89772.0,89769.0,0.52134]
[1745328195528,0.00024711,89771.0,89770.0,0.33424]
[1745328195929,0.00016711,89771.0,89770.0,0.33424]
[1745328196129,0.19553796,89783.0,89770.0,0.55707999]
[1745328196336,0.19553796,89783.0,89781.0,0.3608]
[1745328196533,0.19553796,89783.0,89782.0,0.1871]
[1745328196739,0.19553796,89783.0,89782.0,0.17315919]
[1745328197038,0.19561796,89783.0,89782.0,0.17315919]
[1745328197333,0.30699796,89783.0,89782.0,0.17315919]
[1745328197836,0.30699796,89783.0,89782.0,0.001]
[1745328198027,0.30699796,89783.0,89778.0,0.3608]
[1745328198224,0.163884,89782.0,89778.0,0.3538]
[1745328198425,0.29401796,89783.0,89778.0,0.3538]
[1745328198627,0.29401796,89783.0,89780.0,0.3608]
[1745328198932,0.29401796,89783.0,89781.0,0.1827]
[1745328199135,0.10201796,89783.0,89781.0,0.51694]
[1745328199327,8e-05,89783.0,89781.0,0.51694]
[1745328199530,0.00016711,89791.0,89781.0,0.51694]
[1745328199734,8e-05,89783.0,89781.0,0.51694]
[1745328199930,0.00108,89783.0,89781.0,0.51694]
[1745328200436,8e-05,89783.0,89781.0,0.51694]
[1745328200633,8e-05,89783.0,89781.0,0.51794]
[1745328201030,8e-05,89783.0,89782.0,0.1919]
[1745328202331,0.11146,89783.0,89782.0,0.1919]
[1745328203233,0.11146,89783.0,89782.0,0.1929]
[1745328204035,8e-05,89783.0,89782.0,1.11077999]
[1745328204236,0.03140654,89790.0,89782.0,1.11077999]
[1745328204438,0.00016711,89791.0,89782.0,1.11077999]
[1745328204439,0.00016711,89791.0,89783.0,0.33424]
[1745328204634,0.02241388,89791.0,89790.0,0.3608]
[1745328204830,0.03084091,89791.0,89790.0,0.3608]
[1745328205139,8e-05,89790.0,89783.0,0.5461]
[1745328205644,8e-05,89790.0,89783.0,0.88034]
[1745328205832,0.03084091,89791.0,89783.0,0.88034]
[1745328206032,8e-05,89790.0,89785.0,0.3608]
[1745328206535,8e-05,89790.0,89786.0,0.3748]
[1745328206757,0.03084091,89791.0,89789.0,0.22283999]
[1745328206936,0.1,89800.0,89799.0,0.1113575]
[1745328207135,0.1,89800.0,89799.0,0.58363999]
[1745328207433,0.1221095,89800.0,89799.0,0.91687999]
[1745328207634,0.1221895,89800.0,89799.0,0.91687999]
[1745328208043,0.00016711,89808.0,89799.0,0.97355859]
[1745328208228,0.0228797,89808.0,89807.0,0.3468642]
[1745328208428,0.00016711,89808.0,89807.0,0.32010746]
[1745328208633,0.00843076,89808.0,89807.0,0.32010746]
[1745328209235,0.03065052,89808.0,89807.0,0.32010746]
[1745328209536,0.03057052,89808.0,89807.0,0.32010746]
[1745328210240,0.03065052,89808.0,89807.0,0.32010746]
[1745328210939,0.03065052,89808.0,89807.0,0.31510746]
[1745328211738,0.03065052,89808.0,89807.0,0.64934746]
[1745328212340,0.03065052,89808.0,89807.0,0.31510746]
[1745328212547,0.03065052,89808.0,89807.0,0.002]
[1745328213639,0.14199852,89808.0,89807.0,0.002]
[1745328213838,0.14199852,89808.0,89790.0,0.3608]
[1745328214144,0.19075601,89807.0,89791.0,0.1975]
[1745328214344,0.0794,89807.0,89791.0,0.1975]
[1745328214947,0.3608,89802.0,89791.0,0.1975]
[1745328215144,0.0794,89801.0,89791.0,0.1975]
[1745328215539,0.0386,89801.0,89791.0,0.1975]
[1745328215743,1.69208,89807.0,89791.0,0.1975]
[1745328215945,0.09436,89806.0,89792.0,0.33424]
[1745328216352,0.09436,89806.0,89791.0,0.1985]
[1745328216647,0.09444,89806.0,89792.0,0.33424]
[1745328216852,0.09444,89806.0,89792.0,0.52124]
[1745328217046,0.09444,89806.0,89793.0,0.33424]
[1745328217441,0.09444,89806.0,89799.0,0.3608]
[1745328217640,0.09444,89806.0,89800.0,0.384]
[1745328217845,0.09444,89806.0,89800.0,0.90904]
[1745328218048,0.09444,89806.0,89801.0,0.33424]
[1745328218342,0.09444,89806.0,89801.0,0.32030257]
[1745328218544,0.09436,89806.0,89802.0,0.3917]
[1745328218742,0.09444,89806.0,89802.0,0.3847]
[1745328219540,0.09432,89806.0,89802.0,0.3847]
[1745328220350,0.111352,89805.0,89802.0,0.3847]
[1745328220742,0.11135601,89804.0,89802.0,0.3847]
[1745328221041,0.111352,89805.0,89802.0,0.3847]
[1745328221248,0.303352,89805.0,89802.0,0.3857]
[1745328221451,0.11135601,89804.0,89802.0,0.3857]
[1745328221842,0.11135601,89803.0,89802.0,0.3857]
[1745328222149,0.11135601,89804.0,89802.0,0.3857]
[1745328222352,0.111352,89805.0,89797.0,0.3608]
[1745328222550,0.0767,89803.0,89790.0,0.00016711]
[1745328222853,0.615184,89802.0,89790.0,0.00016711]
[1745328223150,0.05,89800.0,89786.0,0.3608]
[1745328223344,1.6799,89799.0,89786.0,0.34128075]
[1745328223547,0.4095,89798.0,89786.0,0.34128075]
[1745328223742,0.09432,89797.0,89796.0,0.3608]
[1745328224054,0.17102,89797.0,89796.0,0.3608]
[1745328224253,0.282384,89797.0,89796.0,0.3608]
[1745328224450,0.282424,89797.0,89796.0,0.3608]
[1745328224649,0.275504,89797.0,89796.0,0.3608]
[1745328224849,0.275424,89797.0,89796.0,0.3608]
[1745328225047,0.275504,89797.0,89796.0,0.3608]
[1745328225354,0.277504,89797.0,89796.0,0.3608]
[1745328225544,0.183144,89797.0,89796.0,0.3608]
[1745328225745,0.277504,89797.0,89796.0,0.3608]
[1745328226049,0.277504,89797.0,89796.0,0.32001295]
[1745328226255,0.300204,89797.0,89796.0,0.28377121]
[1745328226553,0.300204,89797.0,89789.0,0.13001504]
[1745328226753,0.18884,89797.0,89789.0,0.13001504]
[1745328227147,0.111368,89796.0,89789.0,0.13001504]
[1745328227354,0.3608,89793.0,89789.0,0.13001504]
[1745328227751,0.374268,89792.0,89789.0,0.13001504]
[1745328228054,0.2629,89792.0,89789.0,0.13001504]
[1745328228255,0.111372,89791.0,89789.0,0.13001504]
[1745328228649,0.430072,89790.0,89789.0,0.12165014]
[1745328228948,0.3187,89790.0,89789.0,0.10770863]
[1745328229150,0.430072,89790.0,89789.0,0.10770863]
[1745328229954,0.236872,89790.0,89789.0,0.30040863]
[1745328230654,0.111372,89790.0,89789.0,0.30040863]
[1745328231544,0.111372,89790.0,89789.0,0.27364171]
[1745328232140,0.111452,89790.0,89789.0,0.27364171]
[1745328233744,8e-05,89790.0,89789.0,0.27364171]
[1745328233946,8e-05,89790.0,89788.0,0.36096711]
[1745328233947,0.472172,89790.0,89770.0,0.17247247]
[1745328234142,0.3608,89782.0,89780.0,0.16547247]
[1745328234342,0.3608,89782.0,89781.0,0.1928]
[1745328237043,0.47218,89782.0,89777.0,0.29088257]
[1745328237248,0.3702,89781.0,89778.0,0.1965]
[1745328237448,0.09436,89780.0,89778.0,0.1965]
[1745328237753,0.205744,89780.0,89778.0,0.1965]
[1745328237957,0.481584,89779.0,89778.0,0.1965]
[1745328238753,0.481584,89779.0,89773.0,0.00016711]
[1745328239055,0.111388,89778.0,89773.0,0.00016711]
[1745328239448,1.981588,89777.0,89773.0,0.00016711]
[1745328239651,1.6746,89777.0,89776.0,0.33772999]
[1745328239847,1.785988,89777.0,89776.0,0.31095785]
[1745328240151,1.978068,89777.0,89773.0,0.00216711]
[1745328240349,0.304688,89776.0,89773.0,0.00216711]
[1745328240550,0.304688,89776.0,89773.0,0.00016711]
[1745328240750,0.1933,89776.0,89773.0,0.00016711]
[1745328240950,0.3908,89776.0,89773.0,0.00016711]
[1745328241252,0.39088,89776.0,89773.0,0.00016711]
[1745328241454,0.3908,89776.0,89773.0,0.00016711]
[1745328241760,0.19758,89776.0,89773.0,0.00016711]
[1745328242550,0.39088,89776.0,89773.0,0.00016711]
[1745328242750,0.39188,89776.0,89773.0,0.38526711]
[1745328243646,0.19858,89776.0,89773.0,0.38526711]
[1745328243854,0.00108,89776.0,89773.0,0.38526711]
[1745328244052,0.00016711,89790.0,89775.0,0.77979999]
[1745328244352,0.00016711,89790.0,89774.0,0.29088257]
[1745328244353,0.00016711,89790.0,89789.0,0.7216]
[1745328244554,0.09044711,89790.0,89789.0,0.94443999]
[1745328244857,0.0902,89790.0,89789.0,1.79228256]
[1745328245254,0.09028,89790.0,89789.0,1.79228256]
[1745328245652,0.09228,89790.0,89789.0,1.79228256]
[1745328246153,0.09228,89790.0,89789.0,1.20864257]
[1745328247958,0.09228,89790.0,89789.0,1.18187591]
[1745328248554,0.09228,89790.0,89789.0,0.33403334]
[1745328248947,0.09228,89790.0,89784.0,0.35346]
[1745328249147,0.3791,89789.0,89775.0,0.3608]
[1745328249460,0.4095,89788.0,89767.0,0.3608]
[1745328249648,1.9595,89788.0,89767.0,0.3608]
[1745328249849,0.3791,89787.0,89779.0,0.3608]
[1745328250658,0.1991,89787.0,89783.0,0.3608]
[1745328251360,0.37918,89787.0,89783.0,0.3608]
[1745328251657,0.37918,89787.0,89783.0,0.3066779]
[1745328251863,0.1873,89786.0,89783.0,0.30110244]
[1745328252068,0.05,89784.0,89767.0,0.3608]
[1745328252260,0.2587059,89783.0,89767.0,0.3608]
[1745328252462,0.6418059,89783.0,89767.0,0.3608]
[1745328252661,0.6418059,89783.0,89775.0,0.3608]
[1745328252860,0.4095,89782.0,89775.0,0.3608]
[1745328253267,0.3818,89781.0,89775.0,0.3608]
[1745328254164,0.05,89778.0,89775.0,0.3608]
[1745328254364,0.3818,89777.0,89775.0,0.3608]
[1745328255267,0.5738,89777.0,89775.0,0.3608]
[1745328255959,0.57388,89777.0,89775.0,0.3608]
[1745328256261,0.38188,89777.0,89775.0,0.3608]
[1745328258059,0.19038,89777.0,89775.0,0.3608]
[1745328258255,0.19038,89777.0,89776.0,0.3741]
[1745328258467,0.4095,89780.0,89776.0,0.35975]